bitfinex/quotes_ETHUSD_20250131
["timestamp","ask_amount","ask_price","bid_price","bid_amount"]
[1738356345076,3.01089,3321.3,3320.3,0.22503375]
[1738356345240,3.01084,3321.4,3320.7,3.01134]
[1738356345582,3.01088,3321.3,3320.8,0.04974651]
[1738356345888,3.8133,3321.5,3320.8,0.04974651]
[1738356345889,3.76483,3320.9,3320.8,0.04974651]
[1738356346189,3.01168,3320.4,3320.3,0.22503375]
[1738356346493,3.01168,3320.4,3319.7,3.77659]
[1738356346494,3.01184,3320.3,3319.7,0.7643]
[1738356346705,3.01198,3320.1,3319.5,3.01243]
[1738356347193,0.221,3320.2,3319.6,3.05404539]
[1738356347397,3.01214,3319.9,3319.6,0.04165539]
[1738356347606,0.7536,3320.1,3319.4,3.01257]
[1738356347769,0.221,3320.2,3319.7,0.04155677]
[1738356347770,3.23294,3320.2,3319.7,0.04155677]
[1738356347971,0.221,3320.2,3319.7,3.23669615]
[1738356348177,3.23288,3320.2,3319.8,0.04145816]
[1738356348380,3.23288,3320.2,3319.7,0.22444615]
[1738356348582,3.01198,3320.1,3319.9,0.0375996]
[1738356348899,3.01198,3320.1,3319.7,0.22444615]
[1738356349202,3.01198,3320.1,3319.4,3.01256]
[1738356349399,3.01198,3320.1,3319.8,0.03768924]
[1738356349605,0.03064292,3320.0,3319.2,3.77835]
[1738356349775,3.04268292,3320.0,3319.9,0.0375996]
[1738356349975,3.04268292,3320.0,3319.3,3.01266]
[1738356350323,3.04268292,3320.0,3319.9,0.0375996]
[1738356350511,3.04268292,3320.0,3319.3,3.01266]
[1738356350664,3.01204,3320.0,3319.4,3.05056785]
[1738356351003,3.01195,3320.1,3319.4,0.03804785]
[1738356351307,3.01214,3319.9,3319.4,0.03804785]
[1738356351812,3.01195,3320.1,3319.4,0.03804785]
[1738356352103,0.011,3331.9,3319.2,0.7656]
[1738356352104,0.221,3320.0,3319.7,3.01224]
[1738356352301,0.221,3319.9,3319.8,3.01221]
[1738356352474,0.221,3319.9,3319.8,3.04786781]
[1738356353005,3.01135,3320.8,3319.8,0.03565781]
[1738356353172,0.015,3321.5,3320.0,0.0075]
[1738356353173,0.221,3320.7,3320.0,0.0075]
[1738356353377,0.221,3320.7,3320.6,3.0115]
[1738356353591,0.221,3320.7,3320.6,4.14295]
[1738356353902,0.7825,3321.5,3321.0,3.0111]
[1738356354151,0.221,3321.2,3321.1,3.01105]
[1738356354303,2.385,3322.2,3321.7,3.0105]
[1738356354506,0.221,3322.1,3321.7,3.0105]
[1738356354717,3.01032,3321.9,3321.8,0.04057333]
[1738356354875,3.79642,3321.9,3321.8,0.04057333]
[1738356355203,3.01087,3321.3,3320.8,0.8327]
[1738356356915,3.01078,3321.4,3320.8,0.8327]
[1738356358417,3.01078,3321.4,3320.8,3.84401]
[1738356358771,0.221,3321.5,3321.2,3.01093]
[1738356359034,0.221,3321.5,3321.0,6.0222]
[1738356359174,0.221,3321.5,3321.1,3.01103]
[1738356359589,0.221,3321.5,3321.1,3.01102]
[1738356359791,3.2317,3321.5,3321.0,3.01107]
[1738356360019,0.221,3321.5,3320.8,3.84401]
[1738356360217,0.221,3321.5,3320.8,4.228411]
[1738356360512,3.23169,3321.5,3321.0,3.01111]
[1738356360726,3.01079,3321.4,3320.8,3.84395]
[1738356360888,0.221,3321.5,3320.8,3.84395]
[1738356361079,0.221,3321.5,3320.9,3.01121]
[1738356361276,0.221,3321.5,3320.8,0.8327]
[1738356361476,1.3361,3321.9,3321.3,3.01085]
[1738356361477,0.7861,3321.9,3321.3,3.01085]
[1738356361715,0.221,3321.8,3321.1,3.01103]
[1738356361919,3.01075,3321.5,3321.2,0.03718142]
[1738356362138,3.01075,3321.5,3320.9,3.01119]
[1738356362438,3.78015,3321.5,3320.8,0.8327]
[1738356362644,6.7909,3321.5,3320.8,3.84398]
[1738356363149,3.78015,3321.5,3320.8,3.84398]
[1738356363307,0.7694,3321.5,3320.8,0.8327]
[1738356363646,3.0107,3321.5,3321.0,3.01108]
[1738356364815,0.55,3321.7,3320.8,0.8327]
[1738356365016,3.0108,3321.4,3320.8,3.84395]
[1738356366040,3.0108,3321.4,3320.9,3.01122]
[1738356366241,3.1677,3321.6,3320.9,3.01122]
[1738356366460,3.01074,3321.5,3320.9,3.01122]
[1738356366837,3.01081,3321.4,3320.9,3.01122]
[1738356367557,0.55,3321.4,3320.8,3.01124]
[1738356367757,3.56078,3321.4,3320.7,3.01134]
[1738356368062,3.01095,3321.3,3320.7,3.01134]
[1738356368227,0.15711,3321.6,3320.7,0.0301123]
[1738356368426,3.01065,3321.6,3321.0,3.01109]
[1738356368959,3.01065,3321.6,3320.8,3.01129]
[1738356368960,3.01065,3321.6,3320.8,0.03011002]
[1738356369160,3.55249337,3322.5,3321.7,3.01049]
[1738356369390,0.221,3322.2,3321.8,3.01039]
[1738356369553,0.221,3322.2,3321.7,3.01049]
[1738356369756,0.221,3322.2,3321.5,3.8326]
[1738356369951,0.221,3322.2,3321.7,3.01043]
[1738356370303,0.221,3322.2,3321.5,4.21586]
[1738356370304,0.221,3322.2,3322.1,3.01014]
[1738356370450,0.221,3322.2,3322.1,3.83214]
[1738356370851,3.00942,3322.9,3322.3,3.00994]
[1738356371100,0.221,3322.8,3322.3,3.00994]
[1738356371390,0.221,3322.7,3322.3,3.0099]
[1738356371597,0.7719,3323.0,3322.3,0.38319]
[1738356371769,0.221,3323.1,3322.7,3.00952]
[1738356372655,0.221,3323.1,3322.5,3.00971]
[1738356372850,0.221,3323.1,3322.6,3.00968]
[1738356373073,0.221,3323.1,3322.6,3.06596904]
[1738356373270,3.00934,3323.0,3322.6,0.05628904]
[1738356373492,3.5595,3322.9,3322.6,0.05628904]
[1738356373713,3.00912,3323.3,3322.2,0.03009743]
[1738356373881,3.00908,3323.3,3322.5,3.0097]
[1738356374094,3.00908,3323.3,3322.3,0.7519]
[1738356374095,0.221,3323.5,3323.0,0.7519]
[1738356374274,0.8328,3324.2,3323.4,3.00895]
[1738356374469,0.8328,3324.2,3323.0,0.7519]
[1738356374470,0.73934734,3324.1,3323.5,3.00885]
[1738356374709,0.73934734,3324.1,3323.0,0.7519]
[1738356374710,0.96034734,3324.1,3323.0,0.7519]
[1738356374919,3.55249337,3323.9,3323.0,0.7519]
[1738356375128,0.03064292,3323.8,3322.8,11.76947]
[1738356375273,3.00903,3323.4,3322.8,3.00947]
[1738356375616,3.610826,3323.4,3322.8,3.00947]
[1738356376297,3.00867,3323.8,3323.1,3.00921]
[1738356376618,0.221,3323.5,3323.1,3.00921]
[1738356377112,3.00867,3323.8,3323.3,3.00904]
[1738356377312,3.00867,3323.8,3322.9,3.00939]
[1738356377313,0.221,3323.7,3322.9,3.00939]
[1738356377515,3.00894,3323.5,3322.9,3.00939]
[1738356377714,3.00894,3323.5,3322.7,3.00957]
[1738356377715,3.00912,3323.3,3322.7,3.00957]
[1738356378017,3.61081,3323.4,3322.8,3.00946]
[1738356378317,3.76648,3323.5,3322.9,3.00937]
[1738356378798,3.00898,3323.4,3322.7,3.00952]
[1738356379003,0.7576,3323.5,3323.0,3.00925]
[1738356379377,0.221,3323.7,3323.1,3.00917]
[1738356379616,0.221,3323.7,3323.1,3.00916]
[1738356379617,3.22975,3323.7,3323.1,3.00916]
[1738356379916,3.78416,3323.9,3323.2,3.0091]
[1738356380118,0.221,3323.6,3323.2,3.0091]
[1738356380293,0.221,3323.6,3323.1,0.03008949]
[1738356380509,3.22979,3323.6,3323.0,3.0093]
[1738356380716,0.221,3323.6,3323.2,3.00912]
[1738356381149,0.221,3323.6,3323.1,3.00917]
[1738356381512,0.221,3323.6,3323.3,3.00905]
[1738356382502,0.7999,3324.5,3323.9,3.00849]
[1738356382704,1.0199,3324.9,3324.4,3.00803]
[1738356382953,2.386,3325.2,3324.2,0.03008036]
[1738356383103,0.22,3325.2,3324.8,3.00762]
[1738356383309,0.22,3325.2,3324.7,3.00769]
[1738356383539,3.22737,3325.2,3324.6,3.00787]
[1738356383744,3.22737,3325.2,3324.4,3.008]
[1738356383745,3.0075,3325.1,3324.4,3.008]
[1738356384135,3.00767,3324.9,3324.3,0.7647]
[1738356384455,3.00752,3325.0,3324.4,3.00799]
[1738356384607,3.00752,3325.0,3324.3,1.142001]
[1738356384955,3.00742,3325.1,3324.3,1.142001]
[1738356385152,0.22,3325.2,3323.9,14.76847]
[1738356385153,3.00816,3324.3,3323.9,12.523]
[1738356385453,3.00816,3324.3,3323.6,0.763]
[1738356385454,3.00834,3324.1,3323.6,0.763]
[1738356385954,3.00843,3324.0,3323.3,4.470268]
[1738356386157,0.22,3323.9,3323.3,4.470268]
[1738356386339,0.22,3323.9,3323.5,0.0075]
[1738356386502,3.00781,3324.7,3324.1,3.00832]
[1738356386701,0.55,3325.1,3324.3,3.00815]
[1738356386702,3.00743,3325.1,3324.3,3.00815]
[1738356386910,3.00743,3325.1,3324.6,3.00787]
[1738356387203,3.00726,3325.3,3324.7,3.03784516]
[1738356387434,3.22709,3325.5,3324.9,3.00753]
[1738356387640,3.22709,3325.5,3324.8,0.60457152]
[1738356387820,3.00728,3325.3,3324.6,3.0078]
[1738356388020,3.22709,3325.5,3324.6,3.03787248]
[1738356388248,3.22709,3325.5,3324.8,3.00761]
[1738356388748,3.00728,3325.3,3324.7,3.00773]
[1738356388951,3.00728,3325.3,3324.6,6.01563]
[1738356389154,3.00728,3325.3,3324.7,3.609313]
[1738356389155,3.00734,3325.2,3324.7,3.609313]
[1738356389347,3.00752,3325.0,3324.4,3.84101]
[1738356389550,3.00736,3325.2,3324.4,3.84101]
[1738356389855,3.00748,3325.1,3324.5,3.00795]
[1738356390023,3.00752,3325.0,3324.4,0.833]
[1738356390221,3.00752,3325.0,3324.4,3.84101]
[1738356390551,3.00736,3325.2,3324.5,0.684101]
[1738356390720,3.0077,3324.8,3324.4,0.833]
[1738356390922,3.00736,3325.2,3324.4,3.841]
[1738356391110,0.22,3325.5,3324.4,3.841]
[1738356391111,3.00719,3325.4,3324.8,3.00764]
[1738356391512,3.00719,3325.4,3324.6,3.00782]
[1738356391707,3.00739,3325.2,3324.6,3.00782]
[1738356391953,0.22,3325.2,3324.8,3.00768]
[1738356392328,0.22,3325.2,3324.9,0.03007248]
[1738356392522,0.22,3325.2,3324.8,3.00768]
[1738356393010,3.00719,3325.4,3324.8,3.00768]
[1738356393256,3.22719,3325.4,3324.9,0.8567724]
[1738356393457,3.22719,3325.4,3324.9,0.8267]
[1738356393630,3.00727,3325.3,3324.9,0.8267]
[1738356394153,3.00727,3325.3,3324.6,4.446055]
[1738356394154,3.00735,3325.2,3324.6,4.446055]
[1738356394324,0.22,3325.4,3324.6,0.7533]
[1738356394325,3.00752,3325.0,3324.6,0.7533]
[1738356394862,3.00795,3324.6,3324.3,8.76]
[1738356395158,3.00815,3324.3,3323.9,0.7533]
[1738356395342,3.00811,3324.4,3323.9,1.129493]
[1738356395746,3.00816,3324.3,3323.9,1.129493]
[1738356396559,3.00816,3324.3,3323.9,0.7533]
[1738356396744,3.00824,3324.2,3323.6,8.76]
[1738356396934,3.00879,3323.6,3322.7,0.79]
[1738356397131,3.00752566,3324.1,3323.1,3.00922]
[1738356397132,3.00861,3323.8,3323.1,3.00922]
[1738356397328,3.00846,3324.0,3323.3,3.00903]
[1738356397564,3.00851,3323.9,3323.3,3.00903]
[1738356397962,0.22,3324.1,3323.8,0.8285]
[1738356398541,3.00857,3323.9,3323.4,8.76]
[1738356398917,3.22839,3324.1,3323.4,11.76895]
[1738356399432,3.00842,3324.0,3323.4,11.76895]
[1738356399671,3.00827,3324.2,3323.5,3.00881]
[1738356399832,0.22,3324.7,3324.2,3.00824]
[1738356400017,0.22,3324.7,3324.5,3.00795]
[1738356400355,2.75688274,3325.5,3324.8,3.00762]
[1738356400356,3.00711,3325.5,3324.8,3.00762]
[1738356400559,3.22721,3325.4,3324.7,0.7522]
[1738356400857,3.00743,3325.1,3324.7,0.7522]
[1738356401057,0.22,3325.4,3324.7,0.7522]
[1738356401232,0.22,3325.5,3325.2,3.00726]
[1738356401430,0.22,3325.5,3325.1,3.00737]
[1738356401835,0.22,3325.5,3325.2,3.00731]
[1738356402048,0.22,3325.5,3325.1,3.00737]
[1738356402231,0.22,3325.5,3325.1,3.308107]
[1738356403164,0.22,3325.5,3325.2,3.00731]
[1738356403464,3.1716621,3325.7,3325.2,3.00731]
[1738356403465,0.1647821,3325.7,3325.2,3.00731]
[1738356403669,0.1647821,3325.7,3325.4,3.00711]
[1738356404029,0.1647821,3325.7,3325.5,0.7905]
[1738356404227,0.1647821,3325.7,3325.6,3.05203635]
[1738356404432,0.1647821,3325.7,3325.6,14.81203635]
[1738356404752,1e-05,3326.7,3326.4,3.00618]
[1738356404958,1e-05,3326.7,3326.5,0.03005671]
[1738356405161,1e-05,3326.7,3326.5,0.30362367]
[1738356405468,3.00603,3326.7,3326.1,8.76]
[1738356405635,1e-05,3326.7,3326.1,8.76]
[1738356406172,1e-05,3326.7,3326.3,3.00633]
[1738356406374,1e-05,3326.7,3326.1,11.76651]
[1738356406740,1e-05,3326.7,3326.1,8.76]
[1738356407069,1e-05,3326.7,3326.2,0.95505]
[1738356407437,3.00605,3326.7,3326.1,8.76]
[1738356407771,3.0064,3326.3,3326.1,8.76]
[1738356408269,3.00652,3326.1,3325.6,0.7718]
[1738356408571,3.00643,3326.2,3325.6,0.7718]
[1738356408874,0.8075,3326.6,3325.6,0.7718]
[1738356409072,3.00636,3326.3,3325.6,0.7718]
[1738356409368,3.00645,3326.2,3325.6,0.7718]
[1738356409726,3.00653,3326.1,3325.6,0.7718]
[1738356410752,3.00626,3326.4,3325.7,3.00688]
[1738356411068,3.00635,3326.3,3325.8,0.03006379]
[1738356411257,3.00635,3326.3,3325.6,3.77871]
[1738356411456,3.00635,3326.3,3325.7,3.00687]
[1738356411661,3.00653,3326.1,3325.6,1.8108199]
[1738356411864,3.00653,3326.1,3325.4,3.60444896]
[1738356412175,3.00671,3325.9,3325.4,0.60444896]
[1738356413167,3.00636,3326.3,3325.5,3.00704]
[1738356413340,3.00636,3326.3,3325.6,0.3611489]
[1738356413341,3.0065,3326.2,3325.6,0.3611489]
[1738356414342,3.00689,3325.7,3325.3,0.7795]
[1738356414497,0.55,3326.5,3325.3,0.7795]
[1738356414792,3.00699,3325.6,3325.1,0.300737]
[1738356415206,3.00699,3325.6,3325.0,6.78699]
[1738356415207,3.00699,3325.6,3325.0,0.7795]
[1738356415377,3.00724,3325.3,3324.6,3.78729]
[1738356415555,3.00734,3325.2,3324.6,3.78737]
[1738356416372,3.0072,3325.4,3324.7,0.03007449]
[1738356416573,3.0072,3325.4,3324.6,3.78737]
[1738356416778,3.00733,3325.2,3324.6,0.7795]
[1738356417094,3.00733,3325.2,3324.6,1.158247]
[1738356417391,0.22,3325.5,3324.8,3.00767]
[1738356417594,0.22,3325.5,3325.1,3.00742]
[1738356418268,0.22,3325.5,3324.9,3.00759]
[1738356418465,0.22,3325.5,3324.6,1.158247]
[1738356418696,0.22,3325.5,3324.6,0.7795]
[1738356418697,3.00744,3325.1,3324.6,0.7795]
[1738356419079,3.22708,3325.5,3324.6,0.7795]
[1738356419289,3.22708,3325.5,3324.8,3.00762]
[1738356419578,3.22708,3325.5,3324.6,3.78736]
[1738356419792,0.22,3325.7,3325.1,0.7664]
[1738356420072,3.00699,3325.6,3325.1,0.7664]
[1738356420275,0.22,3325.7,3324.7,0.7664]
[1738356420276,3.00708,3325.5,3324.7,0.7664]
[1738356420610,3.0,3326.2,3324.7,0.7664]
[1738356420611,3.00655,3326.1,3325.1,0.7664]
[1738356420910,3.00682,3325.8,3325.2,3.00733]
[1738356421084,3.22656,3326.1,3325.3,0.03006864]
[1738356421283,3.22656,3326.1,3325.1,9.5264]
[1738356421284,3.00663,3326.0,3325.4,3.00707]
[1738356422269,0.22,3326.1,3325.6,3.00697]
[1738356422470,0.8262,3326.5,3325.8,0.8258]
[1738356422471,3.00626,3326.4,3325.8,0.8258]
[1738356422674,3.00626,3326.4,3325.8,3.83257]
[1738356422870,3.00636,3326.3,3325.8,0.8258]
[1738356423091,3.00636,3326.3,3325.9,0.03006459]
[1738356423416,3.22617,3326.5,3325.8,3.83251]
[1738356423571,3.22617,3326.5,3325.9,0.4133207]
[1738356423777,3.00626,3326.4,3325.9,0.4133207]
[1738356424705,3.22617,3326.5,3325.9,0.4133207]
[1738356425016,1e-05,3326.7,3326.0,0.03006235]
[1738356425217,1e-05,3326.7,3326.5,3.00607]
[1738356425367,1e-05,3326.7,3326.6,4.077177]
[1738356425572,1e-05,3326.7,3326.6,1.071107]
[1738356426184,1e-05,3326.7,3326.6,4.077177]
[1738356426578,1e-05,3326.7,3326.6,1.071107]
[1738356427417,3.00602,3326.7,3326.2,0.8246]
[1738356427571,3.00602,3326.7,3326.1,8.76]
[1738356427572,3.00621,3326.5,3326.1,8.76]
[1738356427775,3.00636,3326.3,3326.1,8.76]
[1738356428786,3.00621,3326.5,3326.1,8.76]
[1738356429725,3.00612,3326.6,3326.1,8.76]
[1738356430230,1e-05,3326.7,3326.1,10.06046007]
[1738356430391,1e-05,3326.7,3326.6,0.812]
[1738356430609,1e-05,3326.7,3326.6,3.84812546]
[1738356430811,1e-05,3326.7,3326.6,3.81807]
[1738356431288,1e-05,3326.7,3326.6,0.812]
[1738356431485,1e-05,3326.7,3326.6,4.199887]
[1738356432034,1e-05,3326.7,3326.6,1.193817]
[1738356432418,3.00618,3326.5,3326.3,8.76]
[1738356433102,3.00599,3326.7,3326.3,8.76]
[1738356433506,3.00625,3326.4,3326.3,8.76]
[1738356433719,3.00667,3326.0,3325.6,0.8315]
[1738356433935,3.00667,3326.0,3325.3,3.83873]
[1738356434237,3.00675,3325.9,3325.4,0.684598]
[1738356434539,0.22,3326.4,3325.3,0.8315]
[1738356434540,3.00643,3326.2,3325.3,0.8315]
[1738356434742,3.00699,3325.6,3324.9,8.76]
[1738356434897,3.00715,3325.4,3324.9,0.8315]
[1738356435094,0.7557,3325.7,3324.9,2.09142]
[1738356435293,3.00706,3325.5,3324.9,2.09142]
[1738356435806,3.00706,3325.5,3324.9,5.09899]
[1738356436010,0.7663,3326.1,3324.9,2.09142]
[1738356436215,3.00715,3325.4,3324.9,2.09142]
[1738356436406,3.00715,3325.4,3325.0,0.509142]
[1738356436609,3.00734,3325.2,3324.9,0.8315]
[1738356436809,0.7663,3325.4,3324.5,0.8046]
[1738356437034,3.00719,3325.4,3324.7,3.0077]
[1738356437239,3.00719,3325.4,3324.5,3.81257]
[1738356437537,3.00758,3325.0,3324.5,0.8046]
[1738356437736,3.00758,3325.0,3324.5,1.185872]
[1738356438249,0.22,3325.1,3324.6,0.0075]
[1738356438454,3.00641,3326.3,3325.5,3.00703]
[1738356438600,3.00641,3326.3,3325.6,3.00692]
[1738356438941,3.00641,3326.3,3325.6,3.69020154]
[1738356439093,3.00653,3326.1,3325.6,0.68328154]
[1738356439294,3.0064,3326.3,3325.6,3.00697]
[1738356439610,3.00646,3326.2,3325.5,3.00706]
[1738356440227,0.22,3326.4,3325.4,0.7888]
[1738356440451,3.00695,3325.7,3325.1,0.7849]
[1738356441099,0.03064292,3325.8,3324.7,0.8182]
[1738356441299,3.0073,3325.3,3324.7,0.8182]
[1738356441614,3.00709,3325.5,3324.8,0.03007282]
[1738356441799,3.00689,3325.7,3324.9,3.00758]
[1738356442005,3.00689,3325.7,3324.9,0.03006984]
[1738356442243,3.00707,3325.5,3324.8,3.0]
[1738356442413,3.00806,3324.4,3324.0,0.8278]
[1738356442742,3.00815,3324.3,3324.0,0.8278]
[1738356443347,0.7884,3324.7,3323.7,3.00868]
[1738356443348,3.00805,3324.5,3323.7,3.00868]
[1738356443654,3.00805,3324.5,3323.8,1.259648]
[1738356444142,3.00752,3325.0,3324.0,3.00835]
[1738356444389,0.8171,3325.1,3324.2,0.7716]
[1738356444506,3.00762,3324.9,3324.2,3.77976]
[1738356444701,0.22,3325.2,3324.4,0.0075]
[1738356444907,0.22,3325.2,3324.8,3.77922]
[1738356445143,0.22,3325.2,3324.9,3.0076]
[1738356445444,3.00749,3325.1,3324.6,8.76]
[1738356445657,3.00762,3324.9,3324.6,8.76]
[1738356445857,3.00749,3325.1,3324.6,8.76]
[1738356446001,0.22,3325.2,3324.6,12.72439]
[1738356446448,0.22,3325.2,3324.6,9.71657]
[1738356446651,0.22,3325.2,3324.6,12.72444]
[1738356447306,3.0077,3324.8,3324.6,8.76]
[1738356447621,0.22,3325.2,3324.6,8.76]
[1738356447809,3.00798,3324.5,3324.0,0.7631]
[1738356448161,3.00763,3324.9,3324.0,7.8497748]
[1738356448569,3.00771,3324.8,3324.0,7.8497748]
[1738356448737,3.0078,3324.7,3324.0,7.8497748]
[1738356449062,3.00763,3324.9,3324.0,7.8497748]
[1738356449467,3.00772,3324.8,3324.0,7.8497748]
[1738356449622,3.00772,3324.8,3324.1,1.66097748]
[1738356450635,3.00772,3324.8,3324.1,4.66927748]
[1738356450866,0.8098,3325.0,3324.0,0.7631]
[1738356451068,3.0087,3323.7,3323.2,0.7908]
[1738356451365,3.00893,3323.5,3323.2,0.7908]
[1738356451536,3.00871,3323.7,3323.2,0.7908]
[1738356451741,3.00881,3323.6,3323.2,0.7908]
[1738356452071,3.22861,3323.8,3323.2,0.7908]
[1738356452434,0.22,3323.8,3323.2,0.7908]
[1738356452672,0.22,3323.8,3323.3,0.380002]
[1738356452873,0.22,3323.8,3323.4,3.0089]
[1738356453030,0.7815,3324.8,3323.5,0.762]
[1738356453230,3.00732,3325.3,3324.1,3.0]
[1738356453432,3.00749,3325.1,3324.5,0.762]
[1738356453621,3.00752,3325.0,3324.5,0.762]
[1738356453968,3.00743,3325.1,3324.5,2.0142]
[1738356454326,3.03816292,3325.0,3324.3,11.76]
[1738356454529,0.7815,3325.4,3324.5,3.00796]
[1738356454730,3.00704,3325.6,3324.6,0.7907]
[1738356454984,3.00681,3325.8,3324.9,3.00759]
[1738356455145,3.00692,3325.7,3324.9,3.00759]
[1738356455325,3.00698,3325.6,3325.0,1.177509]
[1738356456490,3.2267,3325.9,3325.0,1.177509]
[1738356456654,0.22,3325.8,3325.1,0.7682]
[1738356456855,3.00733,3325.2,3325.1,0.7682]
[1738356457058,3.00706,3325.6,3325.1,0.7682]
[1738356457272,3.00663,3326.0,3325.1,3.77562]
[1738356457579,3.00689,3325.7,3325.2,0.377562]
[1738356457785,3.00689,3325.7,3325.1,0.7682]
[1738356457986,3.00733,3325.2,3325.1,0.7682]
[1738356458146,3.0076,3324.9,3324.8,8.76]
[1738356458341,3.0076,3324.9,3324.3,0.8202]
[1738356458547,3.0076,3324.9,3324.3,1.203042]
[1738356458785,3.00743,3325.1,3324.3,6.82834]
[1738356458954,3.00779,3324.7,3324.3,0.8202]
[1738356459160,3.00799,3324.5,3323.9,0.8202]
[1738356459406,3.00818,3324.3,3323.9,0.8202]
[1738356459599,3.00818,3324.3,3323.6,8.76]
[1738356459886,3.00799,3324.5,3323.7,0.03008237]
[1738356460045,3.00807,3324.4,3323.6,0.95802]
[1738356460384,3.00807,3324.4,3323.5,3.82906]
[1738356460385,3.00835,3324.1,3323.5,3.8202]
[1738356460555,3.00823,3324.3,3323.5,3.8202]
[1738356460895,3.00849,3324.0,3323.5,0.8202]
[1738356461104,3.00874,3323.7,3322.9,0.8157]
[1738356461392,3.00874,3323.7,3323.0,3.0]
[1738356461542,3.00874,3323.7,3323.1,1.55851]
[1738356462339,3.0086,3323.8,3323.1,1.55851]
[1738356463495,3.79959,3324.4,3323.5,3.00887]
[1738356463795,3.00777,3324.8,3323.7,0.0075]
[1738356464089,3.22753,3325.0,3324.2,3.00818]
[1738356464449,3.0077,3324.8,3324.0,0.8079]
[1738356464798,3.00814,3324.4,3324.0,0.8079]
[1738356465090,3.00797,3324.5,3324.0,0.8079]
[1738356465796,3.00789,3324.6,3324.0,0.8079]
[1738356466093,6.86601076,3325.3,3324.0,0.8079]
[1738356466094,3.80271,3325.2,3324.2,6.01638]
[1738356466250,3.80271,3325.2,3324.4,3.00805]
[1738356466450,3.00741,3325.2,3324.2,3.00818]
[1738356466675,3.00752,3325.0,3324.2,3.00818]
[1738356466989,3.00752,3325.0,3324.3,3.308958]
[1738356467845,3.0074,3325.2,3324.5,0.7657]
[1738356468045,3.00716,3325.4,3324.6,0.0300758]
[1738356468261,3.007,3325.6,3324.8,3.00769]
[1738356468508,3.007,3325.6,3324.9,0.832]
[1738356468691,3.0071,3325.5,3324.9,0.832]
[1738356468895,3.00716,3325.4,3324.9,0.832]
[1738356469112,3.00733,3325.2,3324.9,0.832]
[1738356469296,3.58757292,3325.7,3324.5,3.7767]
[1738356469607,3.0075,3325.1,3324.5,3.7767]
[1738356469763,3.0075,3325.1,3324.5,0.7767]
[1738356469966,3.00734,3325.2,3324.5,0.7767]
[1738356470269,3.00759,3325.0,3324.5,0.7767]
[1738356470506,3.00812,3324.4,3323.6,3.78778]
[1738356470662,3.00812,3324.4,3323.7,1.254778]
[1738356470864,3.00812,3324.4,3323.7,7.263438]
[1738356471064,3.0079,3324.6,3323.8,3.0086]
[1738356471309,3.00799,3324.5,3323.8,3.0086]
[1738356471516,3.00799,3324.5,3323.9,0.7263378]
[1738356472011,3.00831,3324.2,3323.6,0.779]
[1738356472306,3.00832,3324.2,3323.6,0.779]
[1738356472512,3.00789,3324.6,3323.7,0.0300837]
[1738356472673,3.00789,3324.6,3323.8,3.00852]
[1738356473009,3.00797,3324.5,3323.8,3.00852]
[1738356473213,3.00789,3324.6,3323.8,3.688144]
[1738356473595,3.00789,3324.6,3323.8,3.688134]
[1738356473771,3.00808,3324.4,3323.6,3.78774]
[1738356474111,3.00788,3324.6,3323.7,0.03008212]
[1738356474281,3.00788,3324.6,3323.9,3.00844]
[1738356474491,0.22,3325.3,3324.6,0.767]
[1738356474795,3.79857,3325.4,3324.6,3.80489553]
[1738356475001,3.00717,3325.4,3324.6,3.77482]
[1738356475201,3.00717,3325.4,3324.7,3.00772]
[1738356475512,0.59550121,3325.6,3324.6,1.445286]
[1738356475683,3.00706,3325.5,3324.6,4.453096]
[1738356475884,3.00732,3325.3,3324.6,1.445286]
[1738356476084,3.0071,3325.5,3324.8,3.00768]
[1738356476286,3.00715,3325.4,3324.8,3.00768]
[1738356476486,3.0073,3325.3,3324.7,3.00778]
[1738356476693,3.0073,3325.3,3324.7,4.0538726]
[1738356477074,4.01202,3325.7,3324.8,6.04532387]
[1738356477383,3.00726,3325.3,3324.7,4.0460926]
[1738356477792,3.00726,3325.3,3324.7,7.0538626]
[1738356478117,3.00748,3325.1,3324.6,0.767]
[1738356478321,3.00726,3325.3,3324.6,3.77479]
[1738356479114,3.00708,3325.5,3324.8,3.00768]
[1738356479320,3.00688,3325.8,3325.1,3.00742]
[1738356479821,3.00709,3325.5,3324.8,3.00764]
[1738356480219,3.00709,3325.5,3324.7,3.00775]
[1738356480404,3.00727,3325.3,3324.7,3.00775]
[1738356480606,3.00709,3325.5,3324.9,3.0076]
[1738356480929,3.00704,3325.6,3324.9,3.0076]
[1738356481225,3.00717,3325.4,3324.8,3.00763]
[1738356481955,0.7635,3326.0,3325.5,3.007]
[1738356482100,3.00596,3326.8,3325.9,3.00662]
[1738356482312,3.00546,3327.3,3326.6,3.00607]
[1738356482622,3.00526,3327.5,3326.6,3.00607]
[1738356482783,0.7514,3327.6,3326.2,0.8247]
[1738356482784,0.03064292,3327.4,3326.2,0.8247]
[1738356482983,3.00595,3326.8,3326.2,3.83107]
[1738356483222,3.22558,3327.2,3326.3,0.03006148]
[1738356483416,3.22558,3327.2,3326.3,3.00627]
[1738356483578,3.22558,3327.2,3326.3,3.00634]
[1738356483926,3.0065,3326.2,3325.9,0.8179]
[1738356484106,3.00643,3326.3,3325.5,3.78754]